Cogmind - Beta 14 @@@ ROGUE MODE // 2025.03.09 @ 19:07:24 Player: NeoBioHazard Result: Destroyed by Y-45 Defender with Beam Rifle Performance ------------- Evolutions (1) 500 Regions Visited (4) 800 Robots Destroyed (28) 140 Value Destroyed (918) 918 Prototype IDs (2) 40 Alien Tech Used (0) 0 Bonus (514) 514 TOTAL SCORE: 2912 Bonus ------- High Alert Combat Kills 47 Follower Combat Kills 281 Entered Garrisons 200 Friendly Fire -14 Cogmind --------- Core Integrity 0/400 Matter 300/300 Energy 99/100 System Corruption 0% Temperature Cool (45) Movement Core (50) Location -9/Garrison Parts ------- > --- POWER (1) -------- (None) > --- PROPULSION (3) --- (None) > --- UTILITY (2) ------ (None) > --- WEAPON (3) ------- (None) > --- INVENTORY (5) ---- Power Amplifier Heat Sink High-capacity Battery (250) Sensor Array Seismic Detector Peak State ------------ > --- POWER ------------ Heavy Ion Engine > --- PROPULSION ------- Aluminum Leg Aluminum Leg Aluminum Leg > --- UTILITY ---------- Improved Heat Sink Small Storage Unit > --- WEAPON ----------- Small Laser Beam Rifle Beamcaster > --- INVENTORY -------- Heavy Ion Engine Aluminum Leg Heat Sink High-capacity Battery Sensor Array Seismic Detector Assault Rifle Heavy Assault Rifle [Rating: 19] Favorites ----------- Power Ion Engine Engine Ion Engine Propulsion Aluminum Leg Treads Light Treads Leg Aluminum Leg Wheel Wheel Utility Small Storage Unit Device Improved Heat Sink Storage Small Storage Unit Weapon Small Laser Energy Gun Small Laser Ballistic Gun Light Assault Rifle Build | -11 -10 -9 -9 -9 ------- Run | Yrd Mat Mat Sto Gar Slots Evolved 2 | . . 2 . . Power . | . . . . . Propulsion 1 | . . 1 . . Utility . | . . . . . Weapon 1 | . . 1 . . Parts Attached 34 | 6 10 9 6 3 Power 5 | 1 1 1 2 . Engine 5 | 1 1 1 2 . Core . | . . . . . Reactor . | . . . . . Propulsion 12 | 2 3 4 2 1 Treads 1 | . . 1 . . Leg 9 | . 3 3 2 1 Wheel 2 | 2 . . . . Hover . | . . . . . Flight . | . . . . . Utility 5 | 1 3 1 . . Device 4 | . 3 1 . . Storage 1 | 1 . . . . Processor . | . . . . . Hackware . | . . . . . Protection . | . . . . . Artifact . | . . . . . Weapon 12 | 2 3 3 2 2 Energy Gun 8 | . 3 2 2 1 Energy Cannon . | . . . . . Ballistic Gun 4 | 2 . 1 . 1 Ballistic Cannon . | . . . . . Launcher . | . . . . . Special Weapon . | . . . . . Impact Weapon . | . . . . . Slashing Weapon . | . . . . . Piercing Weapon . | . . . . . Special Melee Weapon . | . . . . . Unidentified Prototypes . | . . . . . Parts Lost 7 | . 1 1 . 5 Power . | . . . . . Propulsion 2 | . . 1 . 1 Utility 2 | . 1 . . 1 Weapon 3 | . . . . 3 Highest Loss Streak 5 | . 1 1 . 5 To Critical Strikes . | . . . . . Average Slot Usage (%) 96 | . 97 94 100 91 Engine 12 | . 14 11 11 11 Treads 1 | . . 5 . . Leg 24 | . 17 22 33 31 Wheel 3 | . 10 . . . Device 11 | . 11 11 11 9 Storage 12 | . 14 11 11 11 Energy Gun 23 | . 14 25 33 25 Ballistic Gun 7 | . 14 7 . 2 Peak Build Rating 19 | 6 7 13 19 19 Average Rating 11 | 4 6 10 15 17 On Entrance 8 | . 6 7 12 19 Naked Turns 2 | . . . . 2 Heaviest Build 23 | 13 13 18 23 23 Greatest Support 30 | 26 26 30 30 30 Greatest Overweight (x) 1 | . 1 1 . . Average Overweight (x) . | . . . . . Largest Inventory Capacity 8 | 8 8 8 8 8 Average Capacity 7 | 6 8 8 8 7 Most Carried 8 | 2 8 8 8 8 Average Carried 6 | 1 5 7 7 7 Final Capacity 8 | 8 8 8 8 5 Final Carried 8 | 2 8 8 8 5 Class Distribution -------------------- 58% | Scavenger-Gunner 24% | Scavenger-Mutant 17% | Mutant Dominant Class ---------------- Scavenger-Mutant | -10/Materials Scavenger-Gunner | -9/Materials Scavenger-Gunner | -9/Storage Scavenger-Gunner | -9/Garrison Resources | -11 -10 -9 -9 -9 ----------- Run | Yrd Mat Mat Sto Gar Matter Collected 605 | 260 125 122 60 38 Remotely . | . . . . . Salvage Created 1215 | . 344 327 311 233 Parts 60 | . 16 14 16 14 Haulers Intercepted . | . . . . . Recyclers Shooed . | . . . . . Parts Field Recycled . | . . . . . Retrieved Matter . | . . . . . Parts Self-Destructed . | . . . . . Prevented . | . . . . . Kills | -11 -10 -9 -9 -9 ------- Run | Yrd Mat Mat Sto Gar Combat Hostiles Destroyed 26 | . 8 6 7 5 Guns 25 | . 8 6 7 4 Classes Destroyed 8 | . 1 2 4 1 Recycler 1 | . . . 1 . Watcher 1 | . . 1 . . Swarmer 2 | . . . 2 . Grunt 18 | . 8 5 2 3 Brawler 1 | . . . 1 . Protector 1 | . . . 1 . Sentry 3 | . . 1 1 1 Hunter 1 | . . . . 1 Best Kill Streak 4 | . 4 3 3 3 Combat Bots Only 4 | . 4 2 3 3 Max Kills in Single Turn 2 | . 1 1 1 2 Gunslinging . | . . . . . Exploded . | . . . . . Melee . | . . . . . Uniques/NPCs Destroyed . | . . . . . Combat | -11 -10 -9 -9 -9 -------- Run | Yrd Mat Mat Sto Gar Hostile Shots Fired 199 | . 43 32 43 81 Missed 54 | . 8 9 14 23 Damage Taken 1929 | . 440 294 342 853 Core 548 | . 137 80 104 227 Absorbed by Shields . | . . . . . Core Remaining (%) 72 | 100 45 . . . Volleys Fired 95 | . 30 20 27 18 Largest 3 | . 2 3 3 3 Hottest 171 | . 60 120 171 171 Shots Fired 239 | . 60 60 77 42 Gun 239 | . 60 60 77 42 Cannon . | . . . . . Launcher . | . . . . . Special . | . . . . . Kinetic 54 | . 30 13 . 11 Thermal 185 | . 30 47 77 31 Explosive . | . . . . . Electromagnetic . | . . . . . Robot Hit Streak 19 | . 7 19 9 6 Robot Miss Streak 6 | . 3 4 6 3 Penetration Max . | . . . . . Secondary Targets 4 | . 1 1 1 1 Max Gunslinging Chain 1 | . 1 1 1 1 Shots Hit Robots 149 | . 42 39 39 29 Core Hits 56 | . 17 14 17 8 Critical Kills . | . . . . . Critical Parts Destroyed . | . . . . . Critical Strikes 1 | . . . . 1 Burn 1 | . . . . 1 Melee Attacks . | . . . . . Impact . | . . . . . Slashing . | . . . . . Piercing . | . . . . . Sneak Attacks . | . . . . . Combat Hostiles . | . . . . . Follow-up Attacks . | . . . . . Damage Inflicted 2004 | . 413 501 601 489 Guns 2004 | . 413 501 601 489 Cannons . | . . . . . Explosions . | . . . . . Melee . | . . . . . Ramming . | . . . . . Kinetic 426 | . 184 107 . 135 Thermal 1578 | . 229 394 601 354 Explosive . | . . . . . Electromagnetic . | . . . . . Impact . | . . . . . Slashing . | . . . . . Piercing . | . . . . . Highest Corruption . | . . . . . Average Corruption . | . . . . . Corruption Purged . | . . . . . Corruption Blocked . | . . . . . Overload Shots . | . . . . . Overflow Damage . | . . . . . Projectiles . | . . . . . Explosions . | . . . . . Melee . | . . . . . Knockbacks . | . . . . . Impact . | . . . . . Kinetic . | . . . . . Secondary . | . . . . . Self-Inflicted Damage . | . . . . . Shots . | . . . . . Rammed . | . . . . . Targets Rammed . | . . . . . Kicked . | . . . . . Crushed . | . . . . . Highest Temperature 279 | . 196 60 279 207 Average Temperature 76 | . 85 26 99 79 Received Heat Transfer 675 | . 210 165 162 138 Effects 3 | . . . 3 . Interference 3 | . . . 3 . Siege Activations . | . . . . . Robots Corrupted . | . . . . . Combat Hostiles . | . . . . . Parts Fried . | . . . . . Impact Corruptions . | . . . . . Robots Melted 1 | . . . . 1 Combat Hostiles 1 | . . . . 1 Parts Melted 4 | . . 3 1 . Heat Transferred 3384 | . 500 850 1182 852 Parts Sabotaged . | . . . . . Parts Stolen . | . . . . . Parts Stripped . | . . . . . Power Chain Reactions . | . . . . . Alert | -11 -10 -9 -9 -9 ------- Run | Yrd Mat Mat Sto Gar Peak Influence 521 | . 224 224 521 447 Initial 338 | . . 31 94 338 Average 198 | . 89 136 333 381 Maximum Alert Level 2 | . 1 1 2 2 Low Security (%) 60 | 100 84 89 26 . Level 1 22 | . 15 10 24 64 Level 2 17 | . . . 49 35 Level 3 . | . . . . . Level 4 . | . . . . . Level 5 . | . . . . . High Security . | . . . . . Max Security . | . . . . . Squads Dispatched 8 | . 4 1 3 . Investigation 4 | . 4 . . . Extermination . | . . . . . Reinforcement 1 | . . 1 . . Assault 2 | . . . 2 . Garrison 1 | . . . 1 . Intercept . | . . . . . Searches Triggered . | . . . . . Construction Impeded . | . . . . . Haulers Reinforced . | . . . . . Active Scanning Responses . | . . . . . Cargo Convoy Interrupts . | . . . . . Stealth | -11 -10 -9 -9 -9 --------- Run | Yrd Mat Mat Sto Gar Distress Signals . | . . . . . Communications Jammed . | . . . . . Distress Signals . | . . . . . Times Spotted 48 | . 9 8 22 9 Peak Tracking Total 7 | . 3 3 6 7 Tactical Retreats 3 | . . . 2 1 Traps | -11 -10 -9 -9 -9 ------- Run | Yrd Mat Mat Sto Gar Traps Triggered 3 | . 2 . . 1 Indirectly . | . . . . . Trap Hack Attempts . | . . . . . Triggered . | . . . . . Disarmed . | . . . . . Reprogrammed . | . . . . . Reused . | . . . . . Traps Extracted . | . . . . . Installed . | . . . . . Triggered . | . . . . . Machines | -11 -10 -9 -9 -9 ---------- Run | Yrd Mat Mat Sto Gar Machines Disabled . | . . . . . Max in Single Turn . | . . . . . Machines Repaired . | . . . . . Machines Dismantled . | . . . . . Machines Sabotaged . | . . . . . Overloaded Fab Kills . | . . . . . Hacking | -11 -10 -9 -9 -9 --------- Run | Yrd Mat Mat Sto Gar Machines Accessed 8 | . 6 . 1 1 Terminals 6 | . 5 . . 1 Fabricators . | . . . . . Repair Stations . | . . . . . Recycling Units 1 | . 1 . . . Scanalyzers . | . . . . . Garrison Access 1 | . . . 1 . Total Hacks 31 | . 27 . 2 2 Successful 10 | . 8 . 1 1 Failed 20 | . 18 . 1 1 Catastrophic 2 | . 2 . . . Database Lockouts 1 | . 1 . . . Manual 21 | . 21 . . . Terminals 26 | . 24 . . 2 Fabricators . | . . . . . Repair Stations . | . . . . . Recycling Units 3 | . 3 . . . Scanalyzers . | . . . . . Garrison Access 2 | . . . 2 . Terminal Hacks 6 | . 5 . . 1 Robot Analysis 2 | . 2 . . . Prototype ID Bank 1 | . 1 . . . Terminal Index 1 | . 1 . . . Unreport Threat 1 | . 1 . . . Garrison Registry 1 | . . . . 1 Fabricator Hacks . | . . . . . Repair Station Hacks . | . . . . . Recycling Unit Hacks . | . . . . . Scanalyzer . | . . . . . Garrison Access Hacks 1 | . . . 1 . Unlock Access 1 | . . . 1 . Unauthorized Hacks 3 | . 3 . . . Terminals 3 | . 3 . . . Botnet 3 | . 3 . . . Fabricators . | . . . . . Repair Stations . | . . . . . Recycling Units . | . . . . . Scanalyzers . | . . . . . Garrison Access . | . . . . . Data Cores Recovered . | . . . . . Used . | . . . . . Hacking Detections 7 | . 6 . . 1 Full Trace Events 5 | . 5 . . . Feedback Events . | . . . . . Feedback Blocked . | . . . . . Robot Schematics Acquired . | . . . . . Robots Built . | . . . . . Authchips . | . . . . . Time . | . . . . . Total Robot Build Rating . | . . . . . Part Schematics Acquired . | . . . . . Parts Built . | . . . . . Authchips . | . . . . . Time . | . . . . . Total Part Build Rating . | . . . . . Parts Repaired . | . . . . . Time . | . . . . . Parts Recycled . | . . . . . Recycled Matter . | . . . . . Retrieved Matter . | . . . . . Retrieved Components . | . . . . . Parts Scanalyzed . | . . . . . Part Schematics Acquired . | . . . . . Parts Damaged . | . . . . . Bothacking | -11 -10 -9 -9 -9 ------------ Run | Yrd Mat Mat Sto Gar Used RIF Installer . | . . . . . Robots Hacked . | . . . . . Non-combat . | . . . . . Combat . | . . . . . Robot Hacks Applied . | . . . . . Relay Couplers Released . | . . . . . Fabnet Peak Effective % . | . . . . . Robots Rewired . | . . . . . Allies Hacked . | . . . . . Hacks Repelled . | . . . . . Allies | -11 -10 -9 -9 -9 -------- Run | Yrd Mat Mat Sto Gar Total Allies 2 | . . . 2 . Largest Group 2 | . . . 2 . Highest-Rated Group 62 | . . . 62 . Highest-Rated Ally 31 | . . . 31 . Total Orders . | . . . . . Ally Attacks 59 | . . . 59 . Total Damage 803 | . . . 803 . Kills 10 | . . . 10 . Allies Corrupted . | . . . . . Allies Melted . | . . . . . Intel | -11 -10 -9 -9 -9 ------- Run | Yrd Mat Mat Sto Gar Robot Analysis Total 2 | . 2 . . . Derelict Logs Recovered . | . . . . . Drone Launches . | . . . . . Drone Recoveries . | . . . . . Exploration | -11 -10 -9 -9 -9 ------------- Run | Yrd Mat Mat Sto Gar Turns Passed 1141 | 50 381 263 291 156 Spaces Moved 636 | 46 247 114 151 78 Core 8 | 3 . . . 5 Treads 10 | . . 10 . . Legs 476 | . 148 104 151 73 Wheels 142 | 43 99 . . . Hover . | . . . . . Flight . | . . . . . Fastest Speed 50 | 50 90 120 120 50 Average Speed 115 | 86 108 133 120 115 Slowest Speed 190 | 90 190 190 120 120 Overloaded Moves . | . . . . . Propulsion Burnouts . | . . . . . Robots Hopped . | . . . . . Cave-ins Triggered . | . . . . . Exploration Rate (%) 22 | 5 44 10 32 23 Regions Visited 4 Branch Regions 1 Pre-discovered Areas . | . . . . . Known Exits Taken 1 | . . . 1 . Unknown Exits Taken 3 | 1 1 1 . . Scrap Searched . | . . . . . Spaces Dug . | . . . . . Terrain Destroyed . | . . . . . Melee . | . . . . . Projectile . | . . . . . AOE . | . . . . . Terrain Rammed . | . . . . . Walls Destroyed . | . . . . . Machines Disabled . | . . . . . Actions | -11 -10 -9 -9 -9 --------- Run | Yrd Mat Mat Sto Gar Total 853 | 53 303 180 209 108 Wait 51 | . 10 27 14 . Move 632 | 45 246 113 150 78 Hop . | . . . . . Pick Up 11 | 2 3 3 3 . Fast Attach 14 | 6 4 4 . . Attach 2 | . . 1 . 1 Detach . | . . . . . Swap 18 | . 6 4 6 2 Drop 25 | . 4 8 9 4 Fire 95 | . 30 20 27 18 Melee . | . . . . . Ram . | . . . . . Kick . | . . . . . Crush . | . . . . . Escape Stasis 5 | . . . . 5 Rewire . | . . . . . Trap . | . . . . . Miscellaneous . | . . . . . Route ------- -11/Scrapyard -10/Materials (discovered 2 exits: [*Mat x2]) -9/Materials -9/Storage -9/Garrison (discovered 3 exits: [Rec x3]) History --------- Turn | Location | Event 9 | -11/Scrapyard | Discovered new exit (range 16) 51 | -11/Scrapyard | Entered Materials 138 | -10/Materials | Discovered new exit (range 16) 314 | -10/Materials | Core integrity fell below 50% 378 | -10/Materials | Central database locked down 414 | -10/Materials | Discovered new exit (range 16) 432 | -10/Materials | Entered another Materials area 432 | -9/Materials | Evolved 2 slots: Propulsion x1, Weapon x1 690 | -9/Materials | Discovered new exit (range 5) 695 | -9/Materials | Entered Storage 754 | -9/Storage | Met a pair of Derelict thieves 781 | -9/Storage | Build established: Scavenger-Gunner 886 | -9/Storage | Garrison activated, responded to threat 984 | -9/Storage | Identified exit to Garrison 986 | -9/Storage | Entered Garrison 1011 | -9/Garrison | Discovered new exit (range 62) 1011 | -9/Garrison | Discovered new exit (range 52) 1011 | -9/Garrison | Discovered new exit (range 71) 1054 | -9/Garrison | Triggered checkpoint 1086 | -9/Garrison | Triggered checkpoint 1107 | -9/Garrison | Core integrity fell below 50% 1107 | -9/Garrison | Triggered checkpoint 1135 | -9/Garrison | Core integrity fell below 20% 1140 | -9/Garrison | Released all parts (3) 1142 | -9/Garrison | Destroyed by Y-45 Defender with Beam Rifle Last Messages --------------- 01118_ Critical hit (Burn: +37). 01120_ Penetrated by Slug. 01121_ H-55 Commando heat damages core (-11). 01122_ Slug penetrates Y-45 Defender. 01123_ Penetrated by Slug. 01124_ Imp. Heat Sink destroyed. 01125_ Slug penetrates Y-45 Defender. 01127_ H-55 Commando heat damages core (-12). 01134_ Aluminum Leg severed. 01136_ Destroyed Lgt. Armor Plating. 01136_ Aluminum Leg destroyed. 01137_ Hvy. Assault Rifle severed. 01137_ Beam Rifle destroyed. 01139_ Dropped Aluminum Leg. 01139_ Dropped Hvy. Ion Engine. 01140_ Y-45 Defender heat damages Lgt. Treads. 01140_ Released Hvy. Ion Engine. 01140_ Released Sml. Storage Unit. 01140_ Released Aluminum Leg. 01140_ Acquired 3 matter. Map ----- +----------------------------------------------------+ | #????????????????????# #??### #?????????# ### | | #????????????????????# #????# #?????????# #?? | | #????????????????????# #????# #?????????# #?? | | ## #????????????????????# #????# #####?????# #?? | | ?# #????????????????????# #????# #?????# #?? | | ?# #????????????????????# #????#+### #?##### #?? | | ?# #????????????????????# #????# #?# #?#""## #?? | | ## #????????????????????# #????# #?# #?# T## #?? | | ##############???????# #????# #?# #?# "## #?? | | ## #??????##"######+### ### ### #?? | | ?# #??????# ^ #?? | | ?#+######+##### #??????# ^ #?? | | ## #????# #???# #??????# ######+## ##########?? | | #????# #???# #??????# ###### ##^^#??????????? | | ####????# #???# #??????# + ##^^#??????????? | | ????????# #???# #??????# ##### ### #??????????? | | ???###### #???# ######## #???# #?# #??????????? | | ???# ## #???# ##= ## #???# #?# #??????????? | | ???# ## #??## ##%[ ## ##??# #?# #??????????? | | ???##""## #### !![ ####+### #??????????? | | ???#T + #??????????? | | ???# ###### #??????????? | | ???# #????#^^^## ## ###########??????????? | | ???######??### ## ## ###??????????????????? | | ???????????# *=%!#??????????????????? | | ???????????# @[b=%#######????????????? | | ???????????# ==bl=+ #????????????? | | ???????????# hY*%##### #????????????? | | ???????????#+# ## ## l=###???# #?#######????? | | ???????????# # ## ## %#######+### """"#????? | | ???????????# # "#????? | | ???????????# + ## """"#????? | | ???????????# # ###+### ########????? | | ???????????# # ##""""## #### #?# #?????####### | | ???????????# + ## ## # ## ###^^#?????# | | ???????????# # ####+### + +^^#?????# ##### | | ???????????# # #??# #?# ### #### #????##+##??? | | ???????????# + #??# #?# #?# #??# #????#! !#??? | | ???????????# # #??# #?# #?# #??# #????#! !#??? | | ???????????# # #??# #?# #?# #??# #????#! !#??? | | ############+# #??# ### ###+#### ####### ##### | | ^^ ^ #??# + | | ^^ ^ #??##### | | ^^ ^ #??????########### #######+### | | ##### #####+#####????????????????# ####?# #?# | | ????# #???# #??????????????????### # "#?# #?# | | ????# #???# #??????????????????# " + "#?####?# | | ??### #???# #??????????????????# " + "#??????# | | ??# " ##### #??????????????????# " + "#??????# | | ??# " + #??????????????????#+# # "#??????# | +----------------------------------------------------+ Best States ------------- Heat Dissipation 42 Energy Generation 14 Energy Capacity 280 Matter Stores 300 Matter Capacity 300 Sight Range 16 Terrain Scan Density 10 Evasion (%) 55 Recoil Reduction 1 Item Schematics ----------------- None Robot Schematics ------------------ None Fabricated ------------ Nothing Alien Tech Used ----------------- None Achievements -------------- None Challenges ------------ None Game ------ Seed AlertLightpackBrace Manual? 0 Play Time 00:17:36 Cumulative 121.1 hours Start 2025.03.09 @ 18:51:56 End 2025.03.09 @ 19:07:24 Sessions 1 Manual Loads 0 Difficulty Rogue Special Mode None Game No. 241 Rogue 173 Adventurer 15 Explorer 53 Win Type - Total 3 Types 3/0/0/0/0/0/0/0/0 Lore% 25 Gallery% 59 Achievement% 46 Wizard Run 0 Options --------- Layout 0 ASCII 0 Keyboard 0 Movement Numpad Keybinds 0 Fullscreen 1 Font 18/SmallcapsGlow Map View 76x50 Zoom Use 0% Tactical HUD 1 Map Filters NONE Filters NONE Steam 1 RUN: 35148dc2-3d30-4f2d-83eb-03254e0b26f2